fUST/lending_fUST_20250626
["ID","MTS","AMOUNT","RATE_DAILY","PERIOD"]
[367796683,1750932646102,-626.87,0.00016712,2]
[367796684,1750932646112,-460.0,0.00016712,2]
[367796687,1750932646121,-197.54761927,0.00016712,2]
[367796689,1750932646131,-460.0,0.00016712,2]
[367796691,1750932646140,-460.0,0.00016712,2]
[367796693,1750932646149,-151.0,0.00016739,2]
[367796695,1750932646160,-151.0,0.00016739,2]
[367796697,1750932646169,-213.51501345,0.00016739,2]
[367796699,1750932646178,-151.29765514,0.00016739,2]
[367796701,1750932646187,-502.51241642,0.00016739,2]
[367796703,1750932646196,-500.0,0.00016739,2]
[367796705,1750932646206,-500.0,0.00016767,2]
[367796707,1750932646215,-500.0,0.00016794,2]
[367796709,1750932646225,-500.0,0.00016822,2]
[367796711,1750932646234,-11041.12466163,0.00016886,2]
[367796713,1750932646243,-570.49,0.00016899,2]
[367796715,1750932646252,-2564.65858346,0.000169,2]
[367796717,1750932646261,-500.0,0.00016973,2]
[367796719,1750932646270,-500.41164183,0.00016973,2]
[367796721,1750932646279,-500.0,0.00016973,2]
[367796723,1750932646288,-500.0,0.00016973,2]
[367796725,1750932646298,-570.49,0.00016985,2]
[367796727,1750932646308,-570.49,0.00016985,2]
[367796729,1750932646317,-570.49,0.00016985,2]
[367796731,1750932646326,-151.0,0.00016986,2]
[367796733,1750932646336,-460.0,0.00016986,2]
[367796735,1750932646345,-151.0,0.00016986,2]
[367796737,1750932646354,-460.0,0.00016986,2]
[367796739,1750932646364,-460.0,0.00016986,2]
[367796741,1750932646373,-460.0,0.00016986,2]
[367796743,1750932646383,-460.0,0.00016986,2]
[367796745,1750932646392,-460.0,0.00016986,2]
[367796746,1750932646402,-460.0,0.00016986,2]
[367796749,1750932646413,-460.0,0.00016986,2]
[367796751,1750932646426,-460.0,0.00016986,2]
[367796753,1750932646435,-460.0,0.00016986,2]
[367796755,1750932646444,-460.0,0.00016986,2]
[367796757,1750932646454,-460.0,0.00016986,2]
[367796759,1750932646464,-460.0,0.00016986,2]
[367796761,1750932646474,-460.0,0.00016986,2]
[367796763,1750932646483,-460.0,0.00016986,2]
[367796765,1750932646493,-460.0,0.00016986,2]
[367796767,1750932646503,-460.0,0.00016986,2]
[367796768,1750932646513,-460.0,0.00016986,2]
[367796771,1750932646522,-460.0,0.00016986,2]
[367796773,1750932646532,-460.0,0.00016986,2]
[367796774,1750932646541,-476.32222731,0.00016986,2]
[367796776,1750932646551,-460.0,0.00016986,2]
[367796779,1750932646561,-460.0,0.00016986,2]
[367796781,1750932646571,-543.28,0.00016986,2]
[367796783,1750932646581,-460.0,0.00016986,2]
[367796785,1750932646590,-460.0,0.00016986,2]
[367796787,1750932646599,-460.0,0.00016986,2]
[367796789,1750932646609,-460.0,0.00016986,2]
[367796791,1750932646619,-460.0,0.00016986,2]
[367796793,1750932646628,-460.0,0.00016986,2]
[367796795,1750932646637,-460.0,0.00016986,2]
[367796797,1750932646647,-460.0,0.00016986,2]
[367796799,1750932646660,-460.0,0.00016986,2]
[367796801,1750932646670,-460.0,0.00016986,2]
[367796803,1750932646680,-460.0,0.00016986,2]
[367796805,1750932646689,-460.0,0.00016986,2]
[367796806,1750932646698,-460.0,0.00016986,2]
[367796808,1750932646708,-460.0,0.00016986,2]
[367796810,1750932646718,-460.0,0.00016986,2]
[367796812,1750932646730,-460.0,0.00016986,2]
[367796814,1750932646739,-460.0,0.00016986,2]
[367796816,1750932646749,-460.0,0.00016986,2]
[367796818,1750932646759,-460.0,0.00016986,2]
[367796820,1750932646768,-460.0,0.00016986,2]
[367796822,1750932646777,-460.0,0.00016986,2]
[367796824,1750932646786,-598.88,0.00016986,2]
[367796826,1750932646796,-460.0,0.00016986,2]
[367796828,1750932646805,-293.66322788,0.00016986,2]
[367796830,1750932646814,-195.25392168,0.00016986,2]
[367796832,1750932646824,-460.0,0.00016986,2]
[367796834,1750932646833,-827.0,0.00016986,2]
[367796836,1750932646842,-460.0,0.00016986,2]
[367796838,1750932646852,-460.0,0.00016986,2]
[367796841,1750932646862,-460.0,0.00016986,2]
[367796843,1750932646871,-465.70957867,0.00016986,2]
[367796845,1750932646880,-460.0,0.00016986,2]
[367796847,1750932646890,-460.0,0.00016986,2]
[367796848,1750932646899,-460.0,0.00016986,2]
[367796850,1750932646910,-460.0,0.00016986,2]
[367796852,1750932646920,-460.0,0.00016986,2]
[367796854,1750932646929,-460.0,0.00016986,2]
[367796856,1750932646938,-460.0,0.00016986,2]
[367796858,1750932646947,-460.0,0.00016986,2]
[367796860,1750932646956,-460.0,0.00016986,2]
[367796862,1750932646965,-297.26648522,0.00016986,2]
[367796864,1750932646975,-460.0,0.00016986,2]
[367796866,1750932646984,-357.01321979,0.00016986,2]
[367796868,1750932646993,-460.0,0.00016986,2]
[367796870,1750932647002,-460.0,0.00016986,2]
[367796873,1750932647012,-473.4080349,0.00016986,2]
[367796874,1750932647021,-460.0,0.00016986,2]
[367796876,1750932647030,-391.28293949,0.00016986,2]
[367796878,1750932647039,-460.0,0.00016986,2]
[367796880,1750932647048,-460.0,0.00016986,2]
[367796882,1750932647057,-1015.0,0.00016986,2]
[367796884,1750932647066,-460.0,0.00016986,2]
[367796887,1750932647075,-460.0,0.00016986,2]
[367796888,1750932647085,-193.37032881,0.00016986,2]
[367796891,1750932647094,-460.0,0.00016986,2]
[367796893,1750932647103,-151.0,0.00016986,2]
[367796895,1750932647112,-460.0,0.00016986,2]
[367796897,1750932647122,-951.51,0.00016986,2]
[367796899,1750932647133,-460.0,0.00016986,2]
[367796900,1750932647142,-460.0,0.00016986,2]
[367796902,1750932647151,-460.0,0.00016986,2]
[367796904,1750932647161,-537.51,0.00016986,2]
[367796906,1750932647171,-460.0,0.00016986,2]
[367796908,1750932647179,-460.0,0.00016986,2]
[367796910,1750932647188,-460.0,0.00016986,2]
[367796912,1750932647198,-460.0,0.00016986,2]
[367796914,1750932647207,-999.24,0.00016986,2]
[367796916,1750932647216,-460.0,0.00016986,2]
[367796918,1750932647226,-460.0,0.00016986,2]
[367796920,1750932647235,-533.08,0.00016986,2]
[367796922,1750932647245,-467.82479433,0.00016986,2]
[367796924,1750932647255,-1671.12,0.00016986,2]
[367796926,1750932647264,-460.0,0.00016986,2]
[367796928,1750932647274,-474.23,0.00016986,2]
[367796930,1750932647283,-460.0,0.00016986,2]
[367796932,1750932647292,-1009.0,0.00016986,2]
[367796934,1750932647301,-499.58,0.00016986,2]
[367796936,1750932647310,-497.28,0.00016986,2]
[367796938,1750932647320,-460.0,0.00016986,2]
[367796940,1750932647329,-460.0,0.00016986,2]
[367796942,1750932647339,-460.0,0.00016986,2]
[367796944,1750932647348,-582.79,0.00016986,2]
[367796946,1750932647357,-460.0,0.00016986,2]
[367796948,1750932647366,-460.0,0.00016986,2]
[367796950,1750932647375,-460.0,0.00016986,2]
[367796952,1750932647385,-460.0,0.00016986,2]
[367796954,1750932647394,-460.0,0.00016986,2]
[367796956,1750932647403,-460.0,0.00016986,2]
[367796958,1750932647414,-460.0,0.00016986,2]
[367796961,1750932647424,-879.61,0.00016986,2]
[367796963,1750932647433,-460.0,0.00016986,2]
[367796965,1750932647442,-460.0,0.00016986,2]
[367796966,1750932647452,-460.0,0.00016986,2]
[367796968,1750932647461,-460.0,0.00016986,2]
[367796970,1750932647470,-463.23,0.00016986,2]
[367796972,1750932647479,-460.49,0.00016986,2]
[367796974,1750932647489,-1903.18,0.00016986,2]
[367796977,1750932647498,-460.0,0.00016986,2]
[367796978,1750932647507,-410.87111296,0.00016986,2]
[367796980,1750932647516,-460.0,0.00016986,2]
[367796982,1750932647526,-460.0,0.00016986,2]
[367796984,1750932647535,-561.06,0.00016986,2]
[367796986,1750932647544,-2113.35,0.00016986,2]
[367796988,1750932647553,-467.16401015,0.00016986,2]
[367796990,1750932647562,-1360.61,0.00016986,2]
[367796992,1750932647572,-460.0,0.00016986,2]
[367796994,1750932647581,-460.0,0.00016986,2]
[367796996,1750932647590,-480.99,0.00016986,2]
[367796998,1750932647601,-460.0,0.00016986,2]
[367797000,1750932647610,-460.0,0.00016986,2]
[367797002,1750932647619,-1596.58,0.00016986,2]
[367797004,1750932647628,-2942.89,0.00016986,2]
[367797006,1750932647638,-700.89,0.00016986,2]
[367797008,1750932647647,-460.0,0.00016986,2]
[367797010,1750932647657,-460.0,0.00016986,2]
[367797012,1750932647666,-328.64622129,0.00016986,2]
[367797014,1750932647675,-460.0,0.00016986,2]
[367797016,1750932647684,-460.0,0.00016986,2]
[367797018,1750932647694,-460.0,0.00016986,2]
[367797020,1750932647703,-460.0,0.00016986,2]
[367797021,1750932647718,-473.96,0.00016986,2]
[367797023,1750932647727,-460.0,0.00016986,2]
[367797025,1750932647736,-741.82,0.00016986,2]
[367797027,1750932647744,-542.26144731,0.00016986,2]
[367797029,1750932647754,-152.84,0.00016986,2]
[367797031,1750932647763,-460.0,0.00016986,2]
[367797033,1750932647772,-1597.51,0.00016986,2]
[367797035,1750932647782,-180.44949262,0.00016986,2]
[367797037,1750932647791,-460.0,0.00016986,2]
[367797039,1750932647801,-460.0,0.00016986,2]
[367797041,1750932647810,-460.0,0.00016986,2]
[367797043,1750932647819,-3620.05,0.00016986,2]
[367797045,1750932647829,-1739.85,0.00016986,2]
[367797047,1750932647838,-513.71,0.00016986,2]
[367797049,1750932647847,-3462.89,0.00016986,2]
[367797051,1750932647857,-278.63589999,0.00016986,2]
[367797053,1750932647866,-460.0,0.00016986,2]
[367797055,1750932647875,-460.0,0.00016986,2]
[367797057,1750932647884,-460.0,0.00016986,2]
[367797058,1750932647893,-460.0,0.00016986,2]
[367797060,1750932647903,-460.0,0.00016986,2]
[367797062,1750932647912,-460.0,0.00016986,2]
[367797064,1750932647922,-460.0,0.00016986,2]
[367797066,1750932647932,-1420.6,0.00016986,2]
[367797068,1750932647941,-460.0,0.00016986,2]
[367797070,1750932647951,-481.33,0.00016986,2]
[367797072,1750932647960,-460.0,0.00016986,2]
[367797074,1750932647970,-1300.58,0.00016986,2]
[367797076,1750932647979,-460.54131775,0.00016986,2]
[367797078,1750932647989,-460.0,0.00016986,2]
[367797080,1750932647998,-460.0,0.00016986,2]
[367797082,1750932648008,-460.0,0.00016986,2]
[367797084,1750932648016,-460.0,0.00016986,2]
[367797096,1750932648127,-1064.55,0.00016986,2]
[367797098,1750932648137,-460.0,0.00016986,2]
[367797100,1750932648146,-1095.23,0.00016986,2]
[367797102,1750932648155,-1049.62,0.00016986,2]
[367797104,1750932648166,-460.0,0.00016986,2]
[367797106,1750932648176,-460.0,0.00016986,2]
[367797108,1750932648186,-460.0,0.00016986,2]
[367797110,1750932648195,-460.0,0.00016986,2]
[367797112,1750932648204,-460.0,0.00016986,2]
[367797114,1750932648214,-460.0,0.00016986,2]
[367797115,1750932648223,-460.0,0.00016986,2]
[367797117,1750932648232,-460.0,0.00016986,2]
[367797119,1750932648241,-1288.06,0.00016986,2]
[367797121,1750932648250,-460.0,0.00016986,2]
[367797123,1750932648259,-460.0,0.00016986,2]
[367797125,1750932648268,-460.0,0.00016986,2]
[367797127,1750932648278,-1521.77,0.00016986,2]
[367797129,1750932648287,-460.0,0.00016986,2]
[367797131,1750932648296,-460.0,0.00016986,2]
[367797133,1750932648306,-460.0,0.00016986,2]
[367797135,1750932648315,-460.0,0.00016986,2]
[367797137,1750932648324,-460.0,0.00016986,2]
[367797139,1750932648333,-460.0,0.00016986,2]
[367797141,1750932648342,-460.0,0.00016986,2]
[367797143,1750932648351,-460.0,0.00016986,2]
[367797144,1750932648361,-460.0,0.00016986,2]
[367797146,1750932648370,-460.0,0.00016986,2]
[367797148,1750932648380,-460.0,0.00016986,2]
[367797150,1750932648389,-460.0,0.00016986,2]
[367797152,1750932648398,-1332.76,0.00016986,2]
[367797154,1750932648407,-460.0,0.00016986,2]
[367797156,1750932648416,-626.87,0.00016986,2]
[367797158,1750932648426,-460.0,0.00016986,2]
[367797160,1750932648435,-1994.94775522,0.00017,2]
[367797162,1750932648444,-827.0,0.00017013,2]
[367797164,1750932648454,-1015.0,0.00017013,2]
[367797166,1750932648463,-151.0,0.00017013,2]
[367797168,1750932648474,-556.07519587,0.00017023,2]
[367797170,1750932648483,-827.0,0.00017041,2]
[367797172,1750932648493,-1015.0,0.00017041,2]
[367797173,1750932648503,-262.0,0.00017042,2]
[367797175,1750932648512,-827.0,0.00017068,2]
[367797177,1750932648521,-1015.0,0.00017068,2]
[367797179,1750932648531,-827.0,0.00017096,2]
[367797181,1750932648541,-1015.0,0.00017096,2]
[367797183,1750932648550,-827.0,0.00017123,2]
[367797185,1750932648560,-1015.0,0.00017123,2]
[367797187,1750932648570,-500.19571875,0.00017139,2]
[367797189,1750932648579,-518.58148547,0.00017139,2]
[367797191,1750932648589,-179.84230171,0.00017139,2]
[367797193,1750932648600,-500.0,0.00017139,2]
[367797195,1750932648610,-500.0,0.00017139,2]
[367797197,1750932648619,-500.0,0.00017139,2]
[367797199,1750932648629,-500.0,0.00017139,2]
[367797201,1750932648638,-166.22610356,0.00017139,2]
[367797203,1750932648648,-500.0,0.00017141,2]
[367797205,1750932648657,-500.0,0.00017141,2]
[367797207,1750932648666,-500.0,0.00017141,2]
[367797209,1750932648677,-501.20861726,0.00017141,2]
[367797211,1750932648686,-500.0,0.00017141,2]
[367797213,1750932648696,-500.84850324,0.00017141,2]
[367797215,1750932648705,-500.0,0.00017141,2]
[367797217,1750932648714,-500.22618135,0.00017141,2]
[367797219,1750932648724,-500.41457115,0.00017141,2]
[367797221,1750932648734,-500.0,0.00017141,2]
[367797223,1750932648745,-500.30344921,0.00017141,2]
[367797225,1750932648754,-500.0,0.00017145,2]
[367797227,1750932648764,-500.0,0.00017145,2]
[367797229,1750932648773,-425.23766605,0.00017145,2]
[367797231,1750932648783,-500.0,0.00017145,2]
[367797233,1750932648793,-500.0,0.00017145,2]
[367797234,1750932648803,-500.0,0.00017145,2]
[367797236,1750932648813,-827.0,0.0001715,2]
[367797238,1750932648823,-1015.0,0.0001715,2]
[367797240,1750932648832,-2564.65858329,0.00017176,2]
[367797242,1750932648841,-827.0,0.00017178,2]
[367797244,1750932648850,-1015.0,0.00017178,2]
[367797246,1750932648860,-827.0,0.00017205,2]
[367797248,1750932648869,-1015.0,0.00017205,2]
[367797250,1750932648878,-331.18375273,0.00017232,2]
[367797252,1750932648887,-500.0,0.00017232,2]
[367797254,1750932648897,-500.0,0.00017232,2]
[367797256,1750932648906,-827.0,0.00017233,2]
[367797258,1750932648915,-1015.0,0.00017233,2]
[367797260,1750932648925,-265.44521236,0.00017241,2]
[367797262,1750932648935,-570.49,0.00017259,2]
[367797264,1750932648945,-570.49,0.00017259,2]
[367797266,1750932648955,-827.0,0.0001726,2]
[367797268,1750932648964,-1015.0,0.0001726,2]
[367797270,1750932648974,-151.0,0.0001726,2]
[367797272,1750932648983,-460.0,0.0001726,2]
[367797274,1750932648993,-151.0,0.0001726,2]
[367797276,1750932649002,-460.0,0.0001726,2]
[367797278,1750932649012,-460.0,0.0001726,2]
[367797280,1750932649022,-460.0,0.0001726,2]
[367797282,1750932649032,-460.0,0.0001726,2]
[367797284,1750932649041,-460.0,0.0001726,2]
[367797286,1750932649051,-332.94815065,0.0001726,2]
[367797288,1750932649060,-421.33972175,0.0001726,2]
[367797290,1750932649070,-460.0,0.0001726,2]
[367797292,1750932649079,-460.0,0.0001726,2]
[367797294,1750932649088,-460.0,0.0001726,2]
[367797296,1750932649098,-460.0,0.0001726,2]
[367797297,1750932649107,-460.0,0.0001726,2]
[367797299,1750932649116,-460.0,0.0001726,2]
[367797301,1750932649126,-460.0,0.0001726,2]
[367797303,1750932649135,-361.66330694,0.0001726,2]
[367797305,1750932649145,-568.13650563,0.0001726,2]
[367797307,1750932649154,-460.0,0.0001726,2]
[367797309,1750932649164,-460.0,0.0001726,2]
[367797311,1750932649174,-460.0,0.0001726,2]
[367797313,1750932649183,-154.21013248,0.0001726,2]
[367797315,1750932649192,-460.0,0.0001726,2]
[367797317,1750932649201,-543.28,0.0001726,2]
[367797319,1750932649211,-460.0,0.0001726,2]
[367797321,1750932649221,-447.94996383,0.0001726,2]
[367797323,1750932649231,-460.0,0.0001726,2]
[367797325,1750932649241,-460.0,0.0001726,2]
[367797327,1750932649250,-460.0,0.0001726,2]
[367797329,1750932649260,-460.0,0.0001726,2]
[367797331,1750932649270,-460.0,0.0001726,2]
[367797333,1750932649279,-460.0,0.0001726,2]
[367797335,1750932649289,-253.69260426,0.0001726,2]
[367797337,1750932649299,-460.0,0.0001726,2]
[367797338,1750932649310,-460.0,0.0001726,2]
[367797340,1750932649320,-460.0,0.0001726,2]
[367797342,1750932649338,-460.0,0.0001726,2]
[367797344,1750932649348,-460.0,0.0001726,2]
[367797346,1750932649357,-460.0,0.0001726,2]
[367797348,1750932649366,-460.0,0.0001726,2]
[367797350,1750932649376,-348.7,0.0001726,2]
[367797352,1750932649386,-460.0,0.0001726,2]
[367797354,1750932649395,-460.0,0.0001726,2]
[367797356,1750932649405,-460.0,0.0001726,2]
[367797358,1750932649415,-460.0,0.0001726,2]
[367797360,1750932649424,-460.0,0.0001726,2]
[367797362,1750932649434,-460.0,0.0001726,2]
[367797364,1750932649443,-460.0,0.0001726,2]
[367797365,1750932649452,-460.0,0.0001726,2]
[367797367,1750932649462,-460.0,0.0001726,2]
[367797369,1750932649471,-460.0,0.0001726,2]
[367797371,1750932649480,-460.0,0.0001726,2]
[367797373,1750932649489,-460.0,0.0001726,2]
[367797375,1750932649499,-460.0,0.0001726,2]
[367797377,1750932649509,-460.0,0.0001726,2]
[367797379,1750932649519,-354.56730608,0.0001726,2]
[367797381,1750932649528,-460.0,0.0001726,2]
[367797383,1750932649537,-460.0,0.0001726,2]
[367797385,1750932649546,-420.0,0.0001726,2]
[367797387,1750932649556,-460.0,0.0001726,2]
[367797389,1750932649566,-460.0,0.0001726,2]
[367797391,1750932649575,-460.0,0.0001726,2]
[367797393,1750932649584,-460.0,0.0001726,2]
[367797395,1750932649593,-460.0,0.0001726,2]
[367797397,1750932649605,-460.0,0.0001726,2]
[367797399,1750932649614,-460.0,0.0001726,2]
[367797400,1750932649623,-460.0,0.0001726,2]
[367797402,1750932649633,-460.0,0.0001726,2]
[367797404,1750932649642,-951.51,0.0001726,2]
[367797406,1750932649652,-460.0,0.0001726,2]
[367797408,1750932649661,-460.0,0.0001726,2]
[367797410,1750932649670,-460.0,0.0001726,2]
[367797412,1750932649680,-537.51,0.0001726,2]
[367797414,1750932649689,-184.89,0.0001726,2]
[367797416,1750932649699,-460.0,0.0001726,2]
[367797418,1750932649708,-460.0,0.0001726,2]
[367797420,1750932649717,-460.0,0.0001726,2]
[367797422,1750932649727,-999.24,0.0001726,2]
[367797424,1750932649737,-460.0,0.0001726,2]
[367797426,1750932649746,-460.0,0.0001726,2]
[367797428,1750932649757,-533.08,0.0001726,2]
[367797430,1750932649766,-1671.12,0.0001726,2]
[367797432,1750932649775,-460.0,0.0001726,2]
[367797434,1750932649785,-474.23,0.0001726,2]
[367797436,1750932649794,-460.0,0.0001726,2]
[367797437,1750932649804,-1009.0,0.0001726,2]
[367797439,1750932649812,-497.28,0.0001726,2]
[367797440,1750932649822,-460.0,0.0001726,2]
[367797441,1750932649831,-177.55898411,0.0001726,2]
[367797442,1750932649841,-460.0,0.0001726,2]
[367797443,1750932649850,-582.79,0.0001726,2]
[367797444,1750932649859,-460.0,0.0001726,2]
[367797445,1750932649869,-460.0,0.0001726,2]
[367797446,1750932649878,-460.0,0.0001726,2]
[367797447,1750932649887,-460.0,0.0001726,2]
[367797448,1750932649897,-460.0,0.0001726,2]
[367797449,1750932649905,-460.0,0.0001726,2]
[367797450,1750932649916,-460.0,0.0001726,2]
[367797451,1750932649925,-879.61,0.0001726,2]
[367797452,1750932649934,-460.0,0.0001726,2]
[367797453,1750932649944,-460.0,0.0001726,2]
[367797454,1750932649953,-460.0,0.0001726,2]
[367797455,1750932649962,-463.23,0.0001726,2]
[367797456,1750932649971,-460.49,0.0001726,2]
[367797457,1750932649980,-1903.18,0.0001726,2]
[367797458,1750932649990,-460.0,0.0001726,2]
[367797459,1750932649999,-460.0,0.0001726,2]
[367797460,1750932650008,-460.0,0.0001726,2]
[367797462,1750932650018,-561.06,0.0001726,2]
[367797464,1750932650027,-2113.35,0.0001726,2]
[367797466,1750932650036,-1360.61,0.0001726,2]
[367797468,1750932650046,-460.0,0.0001726,2]
[367797470,1750932650055,-460.0,0.0001726,2]
[367797472,1750932650064,-480.99,0.0001726,2]
[367797474,1750932650073,-460.0,0.0001726,2]
[367797476,1750932650083,-460.0,0.0001726,2]
[367797478,1750932650092,-1596.58,0.0001726,2]
[367797480,1750932650101,-2942.89,0.0001726,2]
[367797482,1750932650111,-700.89,0.0001726,2]
[367797484,1750932650120,-460.0,0.0001726,2]
[367797486,1750932650130,-460.0,0.0001726,2]
[367797488,1750932650139,-460.0,0.0001726,2]
[367797490,1750932650148,-460.0,0.0001726,2]
[367797492,1750932650158,-460.0,0.0001726,2]
[367797494,1750932650167,-741.82,0.0001726,2]
[367797496,1750932650176,-460.0,0.0001726,2]
[367797498,1750932650185,-1597.51,0.0001726,2]
[367797500,1750932650194,-460.0,0.0001726,2]
[367797501,1750932650203,-460.0,0.0001726,2]
[367797503,1750932650212,-460.0,0.0001726,2]
[367797505,1750932650222,-3620.05,0.0001726,2]
[367797507,1750932650231,-1739.85,0.0001726,2]
[367797509,1750932650240,-3462.89,0.0001726,2]
[367797511,1750932650249,-460.0,0.0001726,2]
[367797513,1750932650259,-460.0,0.0001726,2]
[367797515,1750932650268,-460.0,0.0001726,2]
[367797517,1750932650277,-586.24873085,0.0001726,2]
[367797519,1750932650286,-460.0,0.0001726,2]
[367797521,1750932650295,-460.0,0.0001726,2]
[367797523,1750932650305,-460.0,0.0001726,2]
[367797525,1750932650314,-1420.6,0.0001726,2]
[367797538,1750932650423,-460.0,0.0001726,2]
[367797540,1750932650433,-481.33,0.0001726,2]
[367797542,1750932650443,-460.0,0.0001726,2]
[367797544,1750932650453,-1300.58,0.0001726,2]
[367797546,1750932650464,-460.0,0.0001726,2]
[367797548,1750932650473,-460.0,0.0001726,2]
[367797550,1750932650483,-460.0,0.0001726,2]
[367797552,1750932650493,-460.0,0.0001726,2]
[367797554,1750932650502,-1064.55,0.0001726,2]
[367797556,1750932650512,-460.0,0.0001726,2]
[367797558,1750932650522,-1095.23,0.0001726,2]
[367797560,1750932650531,-1049.62,0.0001726,2]
[367797562,1750932650541,-460.0,0.0001726,2]
[367797564,1750932650550,-460.0,0.0001726,2]
[367797566,1750932650560,-460.0,0.0001726,2]
[367797567,1750932650570,-460.0,0.0001726,2]
[367797569,1750932650579,-472.03175633,0.0001726,2]
[367797571,1750932650588,-460.0,0.0001726,2]
[367797573,1750932650598,-460.0,0.0001726,2]
[367797575,1750932650607,-460.0,0.0001726,2]
[367797577,1750932650616,-1288.06,0.0001726,2]
[367797579,1750932650625,-460.0,0.0001726,2]
[367797581,1750932650634,-460.0,0.0001726,2]
[367797583,1750932650643,-460.0,0.0001726,2]
[367797585,1750932650652,-1521.77,0.0001726,2]
[367797587,1750932650662,-151.0,0.0001726,2]
[367797589,1750932650671,-460.0,0.0001726,2]
[367797591,1750932650680,-460.0,0.0001726,2]
[367797593,1750932650690,-460.0,0.0001726,2]
[367797595,1750932650699,-460.0,0.0001726,2]
[367797597,1750932650708,-460.0,0.0001726,2]
[367797599,1750932650717,-460.0,0.0001726,2]
[367797601,1750932650726,-460.0,0.0001726,2]
[367797603,1750932650735,-273.72,0.0001726,2]
[367797605,1750932650745,-460.0,0.0001726,2]
[367797607,1750932650754,-460.0,0.0001726,2]
[367797609,1750932650763,-460.0,0.0001726,2]
[367797611,1750932650772,-1332.76,0.0001726,2]
[367797613,1750932650783,-626.87,0.0001726,2]
[367797615,1750932650792,-827.0,0.00017287,2]
[367797617,1750932650801,-1015.0,0.00017287,2]
[367797619,1750932650810,-827.0,0.00017315,2]
[367797621,1750932650819,-1015.0,0.00017315,2]
[367797623,1750932650829,-827.0,0.00017342,2]
[367797625,1750932650838,-1015.0,0.00017342,2]
[367797627,1750932650847,-556.07519587,0.00017366,2]
[367797629,1750932650856,-827.0,0.0001737,2]
[367797631,1750932650866,-1015.0,0.0001737,2]
[367797633,1750932650875,-827.0,0.00017397,2]
[367797635,1750932650884,-1015.0,0.00017397,2]
[367797637,1750932650893,-827.0,0.00017424,2]
[367797639,1750932650902,-1015.0,0.00017424,2]
[367797641,1750932650911,-2564.65858329,0.00017452,2]
[367797643,1750932650920,-827.0,0.00017452,2]
[367797645,1750932650929,-1015.0,0.00017452,2]
[367797647,1750932650938,-503.61778586,0.00017461,2]
[367797649,1750932650947,-500.0,0.00017461,2]
[367797651,1750932650957,-827.0,0.00017479,2]
[367797652,1750932650966,-1015.0,0.00017479,2]
[367797654,1750932650975,-827.0,0.00017507,2]
[367797656,1750932650985,-1015.0,0.00017507,2]
[367797658,1750932650994,-1000.0,0.00017521,2]
[367797660,1750932651003,-151.0,0.00017521,2]
[367797662,1750932651013,-152.46579,0.00017521,2]
[367797665,1750932651023,-151.0,0.00017521,2]
[367797666,1750932651031,-151.0,0.00017521,2]